[Event "Titled Tuesday Blitz July 05 Early 2022"]
[White "Migot, Tangi"]
[Black "Perez Ponsa, Federico"]
[WhiteFideId "662445"]
[BlackFideId "117927"]
[WhiteElo "2490"]
[BlackElo "2672"]
[Result "0-1"]
[Round "01"]
[TimeControl "180+1"]
[Date "2022.07.05"]
[WhiteClock "0:01:06"]
[BlackClock "0:01:38"]

1. Nf3 {[%clk 0:03:00]}  Nf6 {[%clk 0:02:56]} 2. b4 {[%clk 0:03:01]}  g6 {[%clk 0:02:53]} 3. Bb2 {[%clk 0:03:01]}  Bg7 {[%clk 0:02:54]} 4. c4 {[%clk 0:03:00]}  O-O {[%clk 0:02:54]} 5. e3 {[%clk 0:03:00]}  d6 {[%clk 0:02:54]} 6. Be2 {[%clk 0:02:59]}  e5 {[%clk 0:02:54]} 7. d4 {[%clk 0:02:57]}  e4 {[%clk 0:02:52]} 8. Nfd2 {[%clk 0:02:57]}  Re8 {[%clk 0:02:51]} 9. Nc3 {[%clk 0:02:56]}  h5 {[%clk 0:02:49]} 10. Qb3 {[%clk 0:02:40]}  Bf5 {[%clk 0:02:47]} 11. a4 {[%clk 0:02:39]}  Nbd7 {[%clk 0:02:46]} 12. a5 {[%clk 0:02:36]}  a6 {[%clk 0:02:41]} 13. b5 {[%clk 0:02:32]}  c6 {[%clk 0:02:37]} 14. bxa6 {[%clk 0:02:23]}  bxa6 {[%clk 0:02:31]} 15. Qa4 {[%clk 0:02:21]}  c5 {[%clk 0:02:27]} 16. Nb3 {[%clk 0:02:11]}  Rb8 {[%clk 0:02:07]} 17. O-O {[%clk 0:02:08]}  Rb4 {[%clk 0:02:03]} 18. Qa2 {[%clk 0:01:55]}  Qb8 {[%clk 0:02:03]} 19. Bd1 {[%clk 0:01:55]}  cxd4 {[%clk 0:01:58]} 20. exd4 {[%clk 0:01:54]}  e3 {[%clk 0:01:59]} 21. Ba3 {[%clk 0:01:31]}  Rxc4 {[%clk 0:01:54]} 22. Ne2 {[%clk 0:01:23]}  exf2+ {[%clk 0:01:51]} 23. Rxf2 {[%clk 0:01:24]}  Ng4 {[%clk 0:01:51]} 24. Rf4 {[%clk 0:01:19]}  Bh6 {[%clk 0:01:44]} 25. Rxf5 {[%clk 0:01:13]}  gxf5 {[%clk 0:01:42]} 26. Ng3 {[%clk 0:01:13]}  Be3+ {[%clk 0:01:38]} 27. Kh1 {[%clk 0:01:07]}  Nf2+ {[%clk 0:01:37]} 28. Kg1 {[%clk 0:01:06]}  Nxd1+ {[%clk 0:01:38]} 0-1


[Site "https://www.chess.com"]

[Event "Titled Tuesday Blitz July 05 Early 2022"]
[White "Pap, Gyula"]
[Black "Pires, Marcos Vinicius Torsani"]
[WhiteFideId "725323"]
[BlackFideId "2118939"]
[WhiteElo "2553"]
[BlackElo "2273"]
[Result "1-0"]
[Round "01"]
[TimeControl "180+1"]
[Date "2022.07.05"]
[WhiteClock "0:01:17"]
[BlackClock "0:00:48"]

1. d4 {[%clk 0:02:58]}  Nf6 {[%clk 0:02:59]} 2. c4 {[%clk 0:02:58]}  g6 {[%clk 0:02:57]} 3. Nc3 {[%clk 0:02:57]}  d5 {[%clk 0:02:57]} 4. Bf4 {[%clk 0:02:56]}  Bg7 {[%clk 0:02:45]} 5. Nf3 {[%clk 0:02:54]}  O-O {[%clk 0:02:45]} 6. Rc1 {[%clk 0:02:53]}  c6 {[%clk 0:02:44]} 7. e3 {[%clk 0:02:51]}  Bg4 {[%clk 0:02:42]} 8. Qb3 {[%clk 0:02:49]}  Bxf3 {[%clk 0:02:30]} 9. gxf3 {[%clk 0:02:50]}  Qb6 {[%clk 0:02:26]} 10. Qxb6 {[%clk 0:02:44]}  axb6 {[%clk 0:02:27]} 11. cxd5 {[%clk 0:02:45]}  Nxd5 {[%clk 0:02:19]} 12. Nxd5 {[%clk 0:02:45]}  cxd5 {[%clk 0:02:20]} 13. a3 {[%clk 0:02:45]}  e5 {[%clk 0:02:04]} 14. Bxe5 {[%clk 0:02:40]}  Bxe5 {[%clk 0:02:04]} 15. dxe5 {[%clk 0:02:41]}  Nc6 {[%clk 0:02:04]} 16. f4 {[%clk 0:02:41]}  d4 {[%clk 0:02:03]} 17. Bg2 {[%clk 0:02:36]}  Rfd8 {[%clk 0:01:58]} 18. Bxc6 {[%clk 0:02:27]}  bxc6 {[%clk 0:01:57]} 19. Rxc6 {[%clk 0:02:27]}  dxe3 {[%clk 0:01:57]} 20. fxe3 {[%clk 0:02:27]}  Rd3 {[%clk 0:01:57]} 21. Ke2 {[%clk 0:02:22]}  Rb3 {[%clk 0:01:56]} 22. Rc2 {[%clk 0:02:21]}  Rd8 {[%clk 0:01:55]} 23. Rd1 {[%clk 0:01:45]}  Rxd1 {[%clk 0:01:45]} 24. Kxd1 {[%clk 0:01:45]}  Rxe3 {[%clk 0:01:45]} 25. Rc3 {[%clk 0:01:36]}  Re4 {[%clk 0:01:45]} 26. Rb3 {[%clk 0:01:36]}  Rxf4 {[%clk 0:01:42]} 27. Rxb6 {[%clk 0:01:36]}  Rd4+ {[%clk 0:01:42]} 28. Ke2 {[%clk 0:01:34]}  Rd5 {[%clk 0:01:42]} 29. a4 {[%clk 0:01:31]}  Rxe5+ {[%clk 0:01:41]} 30. Kf3 {[%clk 0:01:31]}  Rc5 {[%clk 0:01:32]} 31. b4 {[%clk 0:01:31]}  Rc3+ {[%clk 0:01:31]} 32. Ke4 {[%clk 0:01:30]}  Kg7 {[%clk 0:01:29]} 33. a5 {[%clk 0:01:30]}  f5+ {[%clk 0:01:27]} 34. Kd4 {[%clk 0:01:29]}  Ra3 {[%clk 0:01:25]} 35. Rb7+ {[%clk 0:01:23]}  Kf6 {[%clk 0:01:21]} 36. Rxh7 {[%clk 0:01:23]}  f4 {[%clk 0:01:20]} 37. Rh8 {[%clk 0:01:23]}  Kf5 {[%clk 0:01:15]} 38. Rf8+ {[%clk 0:01:18]}  Kg4 {[%clk 0:01:15]} 39. Kc5 {[%clk 0:01:18]}  f3 {[%clk 0:01:06]} 40. Kb6 {[%clk 0:01:18]}  Ra2 {[%clk 0:01:05]} 41. a6 {[%clk 0:01:17]}  Rxh2 {[%clk 0:00:56]} 42. a7 {[%clk 0:01:17]}  Ra2 {[%clk 0:00:57]} 43. a8=Q {[%clk 0:01:17]}  Rxa8 {[%clk 0:00:57]} 44. Rxa8 {[%clk 0:01:18]}  f2 {[%clk 0:00:53]} 45. Rf8 {[%clk 0:01:18]}  Kg3 {[%clk 0:00:54]} 46. Kc5 {[%clk 0:01:18]}  g5 {[%clk 0:00:53]} 47. Kd4 {[%clk 0:01:18]}  Kg2 {[%clk 0:00:49]} 48. Ke3 {[%clk 0:01:18]}  f1=Q {[%clk 0:00:48]} 49. Rxf1 {[%clk 0:01:17]} 1-0


[Site "https://www.chess.com"]

[Event "Titled Tuesday Blitz July 05 Early 2022"]
[White "Richter, Nils"]
[Black "Svane, Frederik"]
[WhiteFideId "12990809"]
[BlackFideId "12923044"]
[WhiteElo "2311"]
[BlackElo "2459"]
[Result "0-1"]
[Round "01"]
[TimeControl "180+1"]
[Date "2022.07.05"]
[WhiteClock "0:00:41"]
[BlackClock "0:00:18"]

1. c4 {[%clk 0:03:00]}  c5 {[%clk 0:02:57]} 2. g3 {[%clk 0:02:59]}  Nc6 {[%clk 0:02:56]} 3. Bg2 {[%clk 0:03:00]}  g6 {[%clk 0:02:57]} 4. Nc3 {[%clk 0:02:59]}  Bg7 {[%clk 0:02:57]} 5. a3 {[%clk 0:02:58]}  Bxc3 {[%clk 0:02:52]} 6. bxc3 {[%clk 0:02:53]}  Nf6 {[%clk 0:02:51]} 7. d3 {[%clk 0:02:54]}  d6 {[%clk 0:02:51]} 8. Nf3 {[%clk 0:02:53]}  h5 {[%clk 0:02:50]} 9. Bg5 {[%clk 0:02:52]}  Qd7 {[%clk 0:02:49]} 10. a4 {[%clk 0:02:50]}  b6 {[%clk 0:02:46]} 11. Qd2 {[%clk 0:02:42]}  Bb7 {[%clk 0:02:45]} 12. O-O {[%clk 0:02:41]}  Na5 {[%clk 0:02:43]} 13. Qc2 {[%clk 0:02:34]}  Nh7 {[%clk 0:02:41]} 14. Bd2 {[%clk 0:02:31]}  O-O-O {[%clk 0:02:34]} 15. e4 {[%clk 0:02:31]}  f5 {[%clk 0:02:32]} 16. Ng5 {[%clk 0:02:27]}  Nxg5 {[%clk 0:02:29]} 17. Bxg5 {[%clk 0:02:28]}  fxe4 {[%clk 0:02:29]} 18. dxe4 {[%clk 0:02:18]}  Rdf8 {[%clk 0:02:22]} 19. Qd3 {[%clk 0:02:14]}  Ba6 {[%clk 0:02:09]} 20. e5 {[%clk 0:02:08]}  Bxc4 {[%clk 0:01:59]} 21. Qc2 {[%clk 0:01:53]}  Bxf1 {[%clk 0:01:39]} 22. Rxf1 {[%clk 0:01:54]}  d5 {[%clk 0:01:39]} 23. e6 {[%clk 0:01:30]}  Qxe6 {[%clk 0:01:36]} 24. Rd1 {[%clk 0:01:30]}  Rf5 {[%clk 0:01:27]} 25. Bf4 {[%clk 0:01:27]}  g5 {[%clk 0:01:14]} 26. Bh3 {[%clk 0:01:23]}  g4 {[%clk 0:01:14]} 27. Bg2 {[%clk 0:01:24]}  Rd8 {[%clk 0:01:14]} 28. h3 {[%clk 0:01:21]}  Rxf4 {[%clk 0:01:11]} 29. gxf4 {[%clk 0:01:18]}  gxh3 {[%clk 0:01:11]} 30. Bf3 {[%clk 0:01:16]}  Qf6 {[%clk 0:00:56]} 31. Rxd5 {[%clk 0:01:04]}  Rxd5 {[%clk 0:00:55]} 32. Bxd5 {[%clk 0:01:04]}  Qxf4 {[%clk 0:00:48]} 33. Be6+ {[%clk 0:01:01]}  Kc7 {[%clk 0:00:48]} 34. Bxh3 {[%clk 0:01:01]}  Nc6 {[%clk 0:00:43]} 35. Bg2 {[%clk 0:00:59]}  Ne5 {[%clk 0:00:40]} 36. Qd1 {[%clk 0:00:54]}  Ng4 {[%clk 0:00:28]} 37. Qe1 {[%clk 0:00:53]}  Qe5 {[%clk 0:00:20]} 38. Qd2 {[%clk 0:00:45]}  h4 {[%clk 0:00:18]} 39. Bh3 {[%clk 0:00:41]}  Qh2+ {[%clk 0:00:18]} 0-1


[Site "https://www.chess.com"]

[Event "Titled Tuesday Blitz July 05 Early 2022"]
[White "Sjugirov, Sanan"]
[Black "Lopez, Henry"]
[WhiteFideId "4189302"]
[BlackFideId "5203830"]
[WhiteElo "2609"]
[BlackElo "2177"]
[Result "1-0"]
[Round "01"]
[TimeControl "180+1"]
[Date "2022.07.05"]
[WhiteClock "0:00:46"]
[BlackClock "0:00:02"]

1. d4 {[%clk 0:03:00]}  Nf6 {[%clk 0:02:58]} 2. c4 {[%clk 0:03:01]}  c5 {[%clk 0:02:57]} 3. d5 {[%clk 0:03:01]}  e6 {[%clk 0:02:57]} 4. Nc3 {[%clk 0:03:01]}  exd5 {[%clk 0:02:57]} 5. cxd5 {[%clk 0:03:01]}  d6 {[%clk 0:02:57]} 6. Nf3 {[%clk 0:03:02]}  g6 {[%clk 0:02:58]} 7. Bf4 {[%clk 0:03:00]}  Bg7 {[%clk 0:02:52]} 8. e3 {[%clk 0:02:57]}  O-O {[%clk 0:02:50]} 9. h3 {[%clk 0:02:58]}  a6 {[%clk 0:02:48]} 10. a4 {[%clk 0:02:57]}  Qe7 {[%clk 0:02:45]} 11. Be2 {[%clk 0:02:57]}  Nbd7 {[%clk 0:02:44]} 12. O-O {[%clk 0:02:57]}  Ne8 {[%clk 0:02:41]} 13. Bh2 {[%clk 0:02:54]}  f5 {[%clk 0:02:40]} 14. Nd2 {[%clk 0:02:54]}  Ne5 {[%clk 0:02:38]} 15. Qc2 {[%clk 0:02:54]}  Bd7 {[%clk 0:02:34]} 16. Rfe1 {[%clk 0:02:46]}  Nf6 {[%clk 0:02:31]} 17. Bf1 {[%clk 0:02:43]}  Rae8 {[%clk 0:02:23]} 18. Rab1 {[%clk 0:02:38]}  a5 {[%clk 0:02:13]} 19. Qb3 {[%clk 0:02:31]}  Ra8 {[%clk 0:01:59]} 20. Bb5 {[%clk 0:02:27]}  Kh8 {[%clk 0:01:56]} 21. Bxd7 {[%clk 0:02:25]}  Qxd7 {[%clk 0:01:50]} 22. Nc4 {[%clk 0:02:24]}  Nxc4 {[%clk 0:01:48]} 23. Qxc4 {[%clk 0:02:25]}  Rfe8 {[%clk 0:01:48]} 24. f3 {[%clk 0:02:10]}  h6 {[%clk 0:01:41]} 25. Rbd1 {[%clk 0:02:09]}  Kh7 {[%clk 0:01:39]} 26. Nb5 {[%clk 0:02:05]}  Ra6 {[%clk 0:01:37]} 27. b3 {[%clk 0:02:02]}  Qe7 {[%clk 0:01:36]} 28. Kh1 {[%clk 0:02:01]}  Rd8 {[%clk 0:01:25]} 29. Qd3 {[%clk 0:01:55]}  Re8 {[%clk 0:01:15]} 30. Re2 {[%clk 0:01:54]}  Kg8 {[%clk 0:01:10]} 31. g4 {[%clk 0:01:52]}  fxg4 {[%clk 0:01:07]} 32. hxg4 {[%clk 0:01:52]}  g5 {[%clk 0:01:05]} 33. Qg6 {[%clk 0:01:49]}  Rf8 {[%clk 0:01:00]} 34. e4 {[%clk 0:01:46]}  Ne8 {[%clk 0:00:55]} 35. Kg2 {[%clk 0:01:29]}  Rf6 {[%clk 0:00:44]} 36. Qh5 {[%clk 0:01:30]}  Rf8 {[%clk 0:00:39]} 37. Rf1 {[%clk 0:01:20]}  Kh7 {[%clk 0:00:19]} 38. Qh3 {[%clk 0:01:17]}  Be5 {[%clk 0:00:16]} 39. Rh1 {[%clk 0:01:14]}  Rf6 {[%clk 0:00:13]} 40. Bg1 {[%clk 0:01:09]}  Kg7 {[%clk 0:00:12]} 41. Be3 {[%clk 0:01:09]}  Bf4 {[%clk 0:00:09]} 42. Bxf4 {[%clk 0:01:09]}  gxf4 {[%clk 0:00:09]} 43. Qh5 {[%clk 0:01:00]}  Qe5 {[%clk 0:00:06]} 44. Qxe5 {[%clk 0:00:58]}  dxe5 {[%clk 0:00:06]} 45. Kf1 {[%clk 0:00:53]}  Nd6 {[%clk 0:00:04]} 46. Rh5 {[%clk 0:00:50]}  Nf7 {[%clk 0:00:02]} 47. Nc7 {[%clk 0:00:46]} 1-0


[Site "https://www.chess.com"]

[Event "Titled Tuesday Blitz July 05 Early 2022"]
[White "Tasev, Dejan"]
[Black "Martinez Alcantara, Jose Eduardo"]
[WhiteFideId "936618"]
[BlackFideId "3805662"]
[WhiteElo "2253"]
[BlackElo "2703"]
[Result "0-1"]
[Round "01"]
[TimeControl "180+1"]
[Date "2022.07.05"]
[WhiteClock "0:00:03"]
[BlackClock "0:00:11"]

1. e4 {[%clk 0:02:58]}  c5 {[%clk 0:02:59]} 2. Nf3 {[%clk 0:02:58]}  d6 {[%clk 0:03:00]} 3. Nc3 {[%clk 0:02:58]}  Nf6 {[%clk 0:03:00]} 4. d4 {[%clk 0:02:58]}  cxd4 {[%clk 0:03:01]} 5. Nxd4 {[%clk 0:02:58]}  Nc6 {[%clk 0:03:02]} 6. Bc4 {[%clk 0:02:57]}  Qb6 {[%clk 0:03:00]} 7. Nb3 {[%clk 0:02:56]}  e6 {[%clk 0:03:00]} 8. Be3 {[%clk 0:02:55]}  Qc7 {[%clk 0:03:00]} 9. Qe2 {[%clk 0:02:55]}  a6 {[%clk 0:03:00]} 10. a4 {[%clk 0:02:55]}  Be7 {[%clk 0:02:56]} 11. O-O {[%clk 0:02:54]}  b6 {[%clk 0:02:49]} 12. f4 {[%clk 0:02:50]}  O-O {[%clk 0:02:49]} 13. Bd3 {[%clk 0:02:47]}  Nb4 {[%clk 0:02:43]} 14. Qf3 {[%clk 0:02:39]}  Bb7 {[%clk 0:02:42]} 15. Rae1 {[%clk 0:02:38]}  d5 {[%clk 0:02:41]} 16. Bd4 {[%clk 0:02:27]}  dxe4 {[%clk 0:02:27]} 17. Nxe4 {[%clk 0:02:21]}  Nxd3 {[%clk 0:02:18]} 18. cxd3 {[%clk 0:02:10]}  Nxe4 {[%clk 0:01:39]} 19. dxe4 {[%clk 0:02:07]}  Rfd8 {[%clk 0:01:39]} 20. Bc3 {[%clk 0:01:57]}  Bf8 {[%clk 0:01:32]} 21. f5 {[%clk 0:01:47]}  e5 {[%clk 0:01:32]} 22. f6 {[%clk 0:01:37]}  g6 {[%clk 0:01:32]} 23. Qg3 {[%clk 0:01:35]}  Qc6 {[%clk 0:01:21]} 24. Nd2 {[%clk 0:01:22]}  Qxa4 {[%clk 0:01:17]} 25. Nf3 {[%clk 0:01:21]}  Bxe4 {[%clk 0:01:15]} 26. Nxe5 {[%clk 0:01:18]}  Bd5 {[%clk 0:01:06]} 27. Rf4 {[%clk 0:01:05]}  Qc2 {[%clk 0:01:00]} 28. h4 {[%clk 0:00:48]}  Be6 {[%clk 0:00:35]} 29. h5 {[%clk 0:00:45]}  Rd1 {[%clk 0:00:36]} 30. hxg6 {[%clk 0:00:41]}  Rxe1+ {[%clk 0:00:35]} 31. Bxe1 {[%clk 0:00:35]}  hxg6 {[%clk 0:00:36]} 32. Bc3 {[%clk 0:00:28]}  Rd8 {[%clk 0:00:32]} 33. Rh4 {[%clk 0:00:21]}  Rd1+ {[%clk 0:00:26]} 34. Kh2 {[%clk 0:00:21]}  Qf5 {[%clk 0:00:19]} 35. Ng4 {[%clk 0:00:13]}  Qg5 {[%clk 0:00:11]} 36. Be5 {[%clk 0:00:10]}  Rf1 {[%clk 0:00:10]} 37. Bc3 {[%clk 0:00:08]}  Rf5 {[%clk 0:00:09]} 38. Nh6+ {[%clk 0:00:06]}  Bxh6 {[%clk 0:00:09]} 39. Qb8+ {[%clk 0:00:06]}  Kh7 {[%clk 0:00:09]} 40. Rh3 {[%clk 0:00:04]}  Qf4+ {[%clk 0:00:10]} 41. Qxf4 {[%clk 0:00:04]}  Rxf4 {[%clk 0:00:11]} 42. Bd2 {[%clk 0:00:03]}  Bxh3 {[%clk 0:00:11]} 0-1


[Site "https://www.chess.com"]

[Event "Titled Tuesday Blitz July 05 Early 2022"]
[White "Timofeev, Artyom"]
[Black "Mickiewicz, Piotr"]
[WhiteFideId "4140419"]
[BlackFideId "1114891"]
[WhiteElo "2578"]
[BlackElo "2209"]
[Result "0-1"]
[Round "01"]
[TimeControl "180+1"]
[Date "2022.07.05"]
[WhiteClock "0:00:18"]
[BlackClock "0:00:34"]

1. e4 {[%clk 0:03:00]}  c6 {[%clk 0:02:56]} 2. Nf3 {[%clk 0:02:59]}  d5 {[%clk 0:02:55]} 3. d3 {[%clk 0:02:59]}  dxe4 {[%clk 0:02:53]} 4. dxe4 {[%clk 0:02:59]}  Qxd1+ {[%clk 0:02:53]} 5. Kxd1 {[%clk 0:02:59]}  Bg4 {[%clk 0:02:51]} 6. Nd2 {[%clk 0:02:56]}  Nd7 {[%clk 0:02:50]} 7. h3 {[%clk 0:02:55]}  Bh5 {[%clk 0:02:49]} 8. Bd3 {[%clk 0:02:51]}  e5 {[%clk 0:02:45]} 9. g4 {[%clk 0:02:48]}  Bg6 {[%clk 0:02:44]} 10. Ke2 {[%clk 0:02:35]}  Bc5 {[%clk 0:02:42]} 11. c3 {[%clk 0:02:33]}  a5 {[%clk 0:02:41]} 12. Nh4 {[%clk 0:02:26]}  a4 {[%clk 0:02:28]} 13. Ndf3 {[%clk 0:02:21]}  Ngf6 {[%clk 0:02:18]} 14. Nf5 {[%clk 0:02:10]}  O-O {[%clk 0:02:05]} 15. Bg5 {[%clk 0:02:07]}  Rfe8 {[%clk 0:02:03]} 16. Rad1 {[%clk 0:02:05]}  b5 {[%clk 0:01:59]} 17. Bc2 {[%clk 0:02:01]}  Bf8 {[%clk 0:01:56]} 18. Rhg1 {[%clk 0:01:51]}  h6 {[%clk 0:01:55]} 19. Bxf6 {[%clk 0:01:39]}  Nxf6 {[%clk 0:01:54]} 20. h4 {[%clk 0:01:39]}  h5 {[%clk 0:01:52]} 21. g5 {[%clk 0:01:35]}  Nh7 {[%clk 0:01:50]} 22. Nh2 {[%clk 0:01:24]}  Bc5 {[%clk 0:01:49]} 23. Nf1 {[%clk 0:01:24]}  Nf8 {[%clk 0:01:47]} 24. N1g3 {[%clk 0:01:19]}  Ne6 {[%clk 0:01:46]} 25. Kf3 {[%clk 0:01:19]}  Rad8 {[%clk 0:01:43]} 26. a3 {[%clk 0:01:13]}  Kf8 {[%clk 0:01:39]} 27. Rge1 {[%clk 0:01:11]}  Nf4 {[%clk 0:01:37]} 28. Ne3 {[%clk 0:01:04]}  Ne6 {[%clk 0:01:27]} 29. Ngf5 {[%clk 0:01:03]}  Rxd1 {[%clk 0:01:27]} 30. Rxd1 {[%clk 0:01:03]}  Rd8 {[%clk 0:01:28]} 31. Rxd8+ {[%clk 0:01:02]}  Nxd8 {[%clk 0:01:28]} 32. Bd3 {[%clk 0:00:55]}  Ne6 {[%clk 0:01:28]} 33. Bf1 {[%clk 0:00:53]}  Ke8 {[%clk 0:01:26]} 34. Ng3 {[%clk 0:00:49]}  Bf8 {[%clk 0:01:25]} 35. Bh3 {[%clk 0:00:48]}  Nc5 {[%clk 0:01:24]} 36. Bf1 {[%clk 0:00:47]}  f6 {[%clk 0:01:20]} 37. gxf6 {[%clk 0:00:45]}  gxf6 {[%clk 0:01:21]} 38. Nef5 {[%clk 0:00:44]}  Bf7 {[%clk 0:01:20]} 39. Be2 {[%clk 0:00:43]}  Ne6 {[%clk 0:01:20]} 40. Bf1 {[%clk 0:00:29]}  Nf4 {[%clk 0:01:20]} 41. Ne3 {[%clk 0:00:28]}  Kd7 {[%clk 0:01:18]} 42. Ngf5 {[%clk 0:00:28]}  Kc7 {[%clk 0:01:17]} 43. c4 {[%clk 0:00:27]}  b4 {[%clk 0:01:16]} 44. axb4 {[%clk 0:00:27]}  Bxb4 {[%clk 0:01:16]} 45. Nc2 {[%clk 0:00:28]}  Bc5 {[%clk 0:01:15]} 46. Nfe3 {[%clk 0:00:27]}  Be6 {[%clk 0:01:12]} 47. Kg3 {[%clk 0:00:22]}  Kb6 {[%clk 0:01:11]} 48. Nd1 {[%clk 0:00:21]}  Ng6 {[%clk 0:01:01]} 49. Nc3 {[%clk 0:00:20]}  Ka5 {[%clk 0:01:00]} 50. Nd1 {[%clk 0:00:18]}  Bf7 {[%clk 0:00:59]} 51. Nc3 {[%clk 0:00:18]}  Be6 {[%clk 0:00:58]} 52. Nd1 {[%clk 0:00:18]}  Be7 {[%clk 0:00:58]} 53. Nc3 {[%clk 0:00:18]}  f5 {[%clk 0:00:59]} 54. Bh3 {[%clk 0:00:16]}  Bxh4+ {[%clk 0:00:56]} 55. Kh2 {[%clk 0:00:16]}  Ne7 {[%clk 0:00:48]} 56. Ne3 {[%clk 0:00:16]}  Bxf2 {[%clk 0:00:45]} 57. exf5 {[%clk 0:00:15]}  Bf7 {[%clk 0:00:43]} 58. Ncd1 {[%clk 0:00:15]}  Bxe3 {[%clk 0:00:42]} 59. Nxe3 {[%clk 0:00:15]}  Kb4 {[%clk 0:00:42]} 60. f6 {[%clk 0:00:16]}  Ng8 {[%clk 0:00:42]} 61. Bd7 {[%clk 0:00:15]}  c5 {[%clk 0:00:41]} 62. Nc2+ {[%clk 0:00:11]}  Kb3 {[%clk 0:00:39]} 63. Ne3 {[%clk 0:00:12]}  Nxf6 {[%clk 0:00:38]} 64. Bc6 {[%clk 0:00:12]}  Ng4+ {[%clk 0:00:33]} 65. Nxg4 {[%clk 0:00:12]}  hxg4 {[%clk 0:00:34]} 66. Kg3 {[%clk 0:00:13]}  Bxc4 {[%clk 0:00:34]} 67. Kxg4 {[%clk 0:00:13]}  Bd3 {[%clk 0:00:33]} 68. Kf3 {[%clk 0:00:13]}  e4+ {[%clk 0:00:34]} 69. Ke3 {[%clk 0:00:13]}  c4 {[%clk 0:00:34]} 70. Kd2 {[%clk 0:00:13]}  Kxb2 {[%clk 0:00:33]} 71. Bxa4 {[%clk 0:00:13]}  c3+ {[%clk 0:00:34]} 72. Ke3 {[%clk 0:00:13]}  c2 {[%clk 0:00:34]} 73. Bxc2 {[%clk 0:00:13]}  Kxc2 {[%clk 0:00:34]} 74. Kf2 {[%clk 0:00:14]}  Kd2 {[%clk 0:00:34]} 75. Kg3 {[%clk 0:00:14]}  e3 {[%clk 0:00:35]} 76. Kg2 {[%clk 0:00:15]}  e2 {[%clk 0:00:35]} 77. Kf3 {[%clk 0:00:16]}  e1=Q {[%clk 0:00:34]} 78. Kf4 {[%clk 0:00:16]}  Qe4+ {[%clk 0:00:33]} 79. Kg5 {[%clk 0:00:17]}  Qf5+ {[%clk 0:00:33]} 80. Kh4 {[%clk 0:00:17]}  Qg6 {[%clk 0:00:33]} 81. Kh3 {[%clk 0:00:17]}  Ke2 {[%clk 0:00:33]} 82. Kh4 {[%clk 0:00:18]}  Kf2 {[%clk 0:00:33]} 83. Kh3 {[%clk 0:00:18]}  Qh5# {[%clk 0:00:34]} 0-1


[Site "https://www.chess.com"]

[Event "Titled Tuesday Blitz July 05 Early 2022"]
[White "Van Foreest, Jorden"]
[Black "Estrada Nieto, Julian"]
[WhiteFideId "1039784"]
[BlackFideId "5101018"]
[WhiteElo "2609"]
[BlackElo "2252"]
[Result "1-0"]
[Round "01"]
[TimeControl "180+1"]
[Date "2022.07.05"]
[WhiteClock "0:02:43"]
[BlackClock "0:01:55"]

1. Nf3 {[%clk 0:03:00]}  d5 {[%clk 0:02:59]} 2. b3 {[%clk 0:03:01]}  Nf6 {[%clk 0:02:56]} 3. Bb2 {[%clk 0:03:02]}  Bg4 {[%clk 0:02:56]} 4. e3 {[%clk 0:03:01]}  Nbd7 {[%clk 0:02:56]} 5. h3 {[%clk 0:03:01]}  Bh5 {[%clk 0:02:49]} 6. d3 {[%clk 0:03:00]}  e6 {[%clk 0:02:49]} 7. Be2 {[%clk 0:03:01]}  Bd6 {[%clk 0:02:48]} 8. Nbd2 {[%clk 0:03:02]}  O-O {[%clk 0:02:47]} 9. g4 {[%clk 0:03:00]}  Bg6 {[%clk 0:02:47]} 10. g5 {[%clk 0:02:59]}  Ne8 {[%clk 0:02:39]} 11. h4 {[%clk 0:02:59]}  Bh5 {[%clk 0:02:32]} 12. Rg1 {[%clk 0:02:46]}  Qe7 {[%clk 0:02:32]} 13. Nf1 {[%clk 0:02:45]}  Ba3 {[%clk 0:02:29]} 14. Qc1 {[%clk 0:02:44]}  Bxb2 {[%clk 0:02:27]} 15. Qxb2 {[%clk 0:02:45]}  Nd6 {[%clk 0:02:22]} 16. Ng3 {[%clk 0:02:45]}  Bxf3 {[%clk 0:02:22]} 17. Bxf3 {[%clk 0:02:46]}  c6 {[%clk 0:02:14]} 18. c4 {[%clk 0:02:46]}  a5 {[%clk 0:02:10]} 19. Nh5 {[%clk 0:02:46]}  g6 {[%clk 0:01:55]} 20. Qg7# {[%clk 0:02:43]} 1-0


[Site "https://www.chess.com"]

[Event "Titled Tuesday Blitz July 05 Early 2022"]
[White "Weishaeutel, Moritz"]
[Black "Naroditsky, Daniel"]
[WhiteFideId "12967300"]
[BlackFideId "2026961"]
[WhiteElo "2002"]
[BlackElo "2608"]
[Result "1-0"]
[Round "01"]
[TimeControl "180+1"]
[Date "2022.07.05"]
[WhiteClock "0:00:32"]
[BlackClock "0:00:55"]

1. e4 {[%clk 0:03:00]}  e5 {[%clk 0:02:58]} 2. Nf3 {[%clk 0:02:58]}  Nc6 {[%clk 0:02:59]} 3. Nc3 {[%clk 0:02:59]}  Nf6 {[%clk 0:02:58]} 4. a3 {[%clk 0:03:00]}  g6 {[%clk 0:02:57]} 5. d4 {[%clk 0:02:59]}  exd4 {[%clk 0:02:57]} 6. Nxd4 {[%clk 0:03:00]}  Bg7 {[%clk 0:02:58]} 7. Bf4 {[%clk 0:02:51]}  O-O {[%clk 0:02:56]} 8. Be2 {[%clk 0:02:47]}  Re8 {[%clk 0:02:50]} 9. Nxc6 {[%clk 0:02:40]}  bxc6 {[%clk 0:02:51]} 10. e5 {[%clk 0:02:40]}  Nd5 {[%clk 0:02:31]} 11. Nxd5 {[%clk 0:02:41]}  cxd5 {[%clk 0:02:32]} 12. Qxd5 {[%clk 0:02:41]}  Rb8 {[%clk 0:02:32]} 13. Bc4 {[%clk 0:02:37]}  Qe7 {[%clk 0:02:27]} 14. O-O-O {[%clk 0:02:28]}  c6 {[%clk 0:02:11]} 15. Qxf7+ {[%clk 0:02:16]}  Kh8 {[%clk 0:01:57]} 16. Qxe7 {[%clk 0:02:10]}  Rxe7 {[%clk 0:01:58]} 17. Rhe1 {[%clk 0:02:00]}  Ra8 {[%clk 0:01:44]} 18. Bg5 {[%clk 0:01:29]}  Re8 {[%clk 0:01:37]} 19. Bf6 {[%clk 0:01:16]}  Rf8 {[%clk 0:01:25]} 20. Bxg7+ {[%clk 0:01:07]}  Kxg7 {[%clk 0:01:26]} 21. Re2 {[%clk 0:01:07]}  Rf4 {[%clk 0:01:24]} 22. Bb3 {[%clk 0:01:03]}  a5 {[%clk 0:01:23]} 23. g3 {[%clk 0:01:02]}  Rf3 {[%clk 0:01:23]} 24. Rd3 {[%clk 0:00:59]}  Rf5 {[%clk 0:01:12]} 25. f4 {[%clk 0:00:56]}  g5 {[%clk 0:01:13]} 26. Rd4 {[%clk 0:00:53]}  Ra7 {[%clk 0:01:11]} 27. e6 {[%clk 0:00:49]}  dxe6 {[%clk 0:01:08]} 28. Bxe6 {[%clk 0:00:50]}  Bxe6 {[%clk 0:01:07]} 29. Rxe6 {[%clk 0:00:51]}  c5 {[%clk 0:01:06]} 30. Rde4 {[%clk 0:00:49]}  gxf4 {[%clk 0:01:06]} 31. Rxf4 {[%clk 0:00:42]}  Rd5 {[%clk 0:01:06]} 32. b3 {[%clk 0:00:36]}  Rad7 {[%clk 0:01:06]} 33. Rfe4 {[%clk 0:00:36]}  Kf7 {[%clk 0:01:05]} 34. R6e5 {[%clk 0:00:35]}  Rd2 {[%clk 0:00:58]} 35. Re7+ {[%clk 0:00:33]}  Kf6 {[%clk 0:00:57]} 36. Rxd7 {[%clk 0:00:34]}  Rxd7 {[%clk 0:00:57]} 37. Ra4 {[%clk 0:00:33]}  Ra7 {[%clk 0:00:57]} 38. b4 {[%clk 0:00:32]}  axb4 {[%clk 0:00:55]} 39. Rxa7 {[%clk 0:00:32]} 1-0


[Site "https://www.chess.com"]